bitfinex/quotes_BTCUSD_20230118
["timestamp","ask_amount","ask_price","bid_price","bid_amount"]
[1674036442960,1.02598631,21247.0,21242.0,0.941526]
[1674036443205,1.02598631,21247.0,21242.0,1.15925195]
[1674036443466,1.34664031,21247.0,21242.0,1.15925195]
[1674036443724,1.34664031,21247.0,21242.0,1.13225195]
[1674036444222,0.87598631,21247.0,21242.0,1.13225195]
[1674036445504,0.87598631,21247.0,21242.0,1.22625195]
[1674036445751,1.34664031,21247.0,21242.0,1.13225195]
[1674036446274,1.34664031,21247.0,21242.0,1.22525195]
[1674036447036,0.87598131,21247.0,21242.0,1.22525195]
[1674036447293,0.40532731,21247.0,21242.0,1.22525195]
[1674036448861,0.40532731,21247.0,21243.0,0.19072595]
[1674036449080,0.29482731,21247.0,21244.0,0.941432]
[1674036450388,0.29482731,21247.0,21244.0,0.968432]
[1674036453100,0.01270766,21248.0,21244.0,0.968432]
[1674036453350,0.01270766,21248.0,21244.0,1.15915795]
[1674036454179,0.28187333,21247.0,21244.0,0.941432]
[1674036454461,0.28187333,21247.0,21244.0,0.968432]
[1674036454723,0.28091414,21247.0,21244.0,0.968432]
[1674036454979,0.28091414,21247.0,21244.0,0.941432]
[1674036456328,0.28091414,21247.0,21244.0,0.968432]
[1674036460905,0.01270766,21248.0,21244.0,0.968432]
[1674036461163,0.01270766,21248.0,21244.0,1.15915795]
[1674036462283,0.01270766,21248.0,21244.0,0.968432]
[1674036462458,0.01270766,21248.0,21244.0,0.941432]
[1674036462713,0.01270766,21248.0,21244.0,0.968432]
[1674036463228,0.27912479,21248.0,21244.0,0.968432]
[1674036466193,0.27912479,21248.0,21245.0,0.3]
[1674036466404,0.27912479,21248.0,21244.0,0.968432]
[1674036466667,0.27912479,21248.0,21246.0,0.470676]
[1674036468829,0.27912479,21248.0,21246.0,0.477676]
[1674036469862,0.28008398,21248.0,21246.0,0.477676]
[1674036470174,0.28008398,21248.0,21246.0,0.007]
[1674036470175,0.434341,21247.0,21246.0,0.007]
[1674036470436,0.434341,21247.0,21246.0,0.00690408]
[1674036471764,0.434341,21247.0,21245.0,0.470679]
[1674036472022,0.434341,21247.0,21244.0,0.470704]
[1674036472023,0.111,21247.0,21246.0,0.007]
[1674036472275,0.424333,21247.0,21246.0,0.007]
[1674036473073,0.424333,21247.0,21244.0,0.941415]
[1674036473328,0.330924,21246.0,21245.0,0.002]
[1674036473592,0.330924,21246.0,21244.0,0.941415]
[1674036473870,0.334955,21245.0,21244.0,0.941415]
[1674036474312,0.111,21247.0,21244.0,0.941415]
[1674036474576,0.111,21247.0,21244.0,0.968415]
[1674036474846,0.111,21247.0,21244.0,0.941415]
[1674036475105,0.327985,21246.0,21244.0,0.968415]
[1674036475401,1.40718597,21248.0,21244.0,0.968415]
[1674036475620,1.40718597,21248.0,21244.0,1.15914095]
[1674036476144,1.40718597,21248.0,21244.0,0.941415]
[1674036476402,0.30098,21247.0,21244.0,0.968415]
[1674036476663,0.322024,21246.0,21244.0,0.968415]
[1674036476928,1.64987609,21248.0,21244.0,0.970415]
[1674036477200,1.64987609,21248.0,21244.0,1.16114095]
[1674036477458,0.321631,21247.0,21244.0,0.66143395]
[1674036477721,0.330489,21246.0,21244.0,0.497708]
[1674036478027,0.330489,21246.0,21244.0,0.470708]
[1674036478283,0.322666,21245.0,21244.0,0.002]
[1674036478543,0.793364,21245.0,21244.0,0.002]
[1674036478797,0.793364,21245.0,21244.0,0.004]
[1674036479826,1.414062,21245.0,21244.0,0.002]
[1674036480081,0.322666,21245.0,21244.0,0.002]
[1674036480335,0.793364,21245.0,21244.0,0.002]
[1674036483398,0.903564,21245.0,21244.0,0.002]
[1674036484442,1.053564,21245.0,21244.0,0.002]
[1674036484663,1.374262,21245.0,21244.0,0.002]
[1674036487424,1.374262,21245.0,21241.0,0.470772]
[1674036487696,1.374262,21245.0,21244.0,0.005]
[1674036487697,1.129396,21245.0,21244.0,0.005]
[1674036487946,1.553526,21245.0,21244.0,0.005]
[1674036488241,1.88579618,21245.0,21244.0,0.005]
[1674036488476,1.51759618,21245.0,21239.0,0.470817]
[1674036488766,1.51759618,21245.0,21241.0,0.054]
[1674036488767,0.0752,21242.0,21241.0,0.054]
[1674036489032,0.407897,21242.0,21241.0,0.054]
[1674036489764,0.407897,21242.0,21239.0,0.470817]
[1674036490019,0.309513,21241.0,21239.0,0.470817]
[1674036490273,0.0782,21242.0,21241.0,0.054]
[1674036490528,0.545967,21242.0,21239.0,0.470817]
[1674036490778,0.31095,21241.0,21239.0,0.524817]
[1674036491028,0.335997,21240.0,21239.0,0.470817]
[1674036491286,0.545967,21242.0,21239.0,0.470817]
[1674036491561,0.548967,21242.0,21241.0,0.054]
[1674036491812,0.87694619,21242.0,21239.0,0.470817]
[1674036492077,0.343934,21241.0,21239.0,0.524817]
[1674036492324,0.334079,21240.0,21239.0,0.524817]
[1674036492574,0.003,21241.0,21239.0,0.524817]
[1674036492824,0.54692619,21242.0,21239.0,0.470817]
[1674036493082,0.32724,21241.0,21239.0,0.524817]
[1674036493355,0.47172619,21242.0,21239.0,0.470817]
[1674036493573,0.003,21241.0,21239.0,0.524817]
[1674036495873,0.003,21241.0,21239.0,0.054]
[1674036497678,0.003,21241.0,21239.0,0.524827]
[1674036498207,0.003,21241.0,21239.0,0.054]
[1674036498987,0.00395919,21241.0,21239.0,0.054]
[1674036499242,0.003,21241.0,21239.0,0.054]
[1674036499987,0.11375919,21241.0,21239.0,0.054]
[1674036500241,0.305088,21240.0,21239.0,0.054]
[1674036500500,0.1128,21241.0,21239.0,0.054]
[1674036501266,0.11375919,21241.0,21239.0,0.054]
[1674036502053,0.1128,21241.0,21239.0,0.054]
[1674036502340,0.11375919,21241.0,21239.0,0.054]
[1674036502592,0.1128,21241.0,21239.0,0.054]
[1674036502843,0.325817,21240.0,21239.0,0.054]
[1674036503101,0.003,21241.0,21239.0,0.054]
[1674036503362,0.00395919,21241.0,21239.0,0.054]
[1674036504153,0.003,21241.0,21239.0,0.524819]
[1674036504442,0.003,21241.0,21239.0,0.524831]
[1674036509154,0.00395919,21241.0,21239.0,0.995662]
[1674036509414,0.003,21241.0,21239.0,0.995662]
[1674036509671,0.003,21241.0,21239.0,0.524831]
[1674036510436,0.003,21241.0,21239.0,0.995662]
[1674036510688,0.003,21241.0,21239.0,0.524831]
[1674036513828,0.00395919,21241.0,21239.0,0.524831]
[1674036514114,0.003,21241.0,21239.0,0.524831]
[1674036515670,0.003,21241.0,21239.0,0.63728156]
[1674036515910,0.003,21241.0,21239.0,0.524831]
[1674036516173,0.003,21241.0,21239.0,0.63728156]
[1674036517527,0.003,21241.0,21240.0,0.41245056]
[1674036517528,0.00292863,21241.0,21240.0,0.41245056]
[1674036517791,0.00292863,21241.0,21240.0,2.0067568]
[1674036518087,0.00292863,21241.0,21240.0,1.52333397]
[1674036518372,0.00292863,21241.0,21240.0,2.00675495]
[1674036518630,0.58164,21244.0,21240.0,2.00675495]
[1674036518887,0.58164,21244.0,21240.0,1.71405992]
[1674036519707,0.58164,21244.0,21240.0,1.22333397]
[1674036519965,0.00095919,21243.0,21240.0,1.22333397]
[1674036520216,0.00095919,21243.0,21240.0,1.10806856]
[1674036520217,0.003,21241.0,21240.0,1.10806856]
[1674036520483,0.00095919,21243.0,21240.0,1.35406856]
[1674036520954,0.941503,21243.0,21240.0,0.16645056]
[1674036521231,0.470758,21243.0,21240.0,0.16645056]
[1674036521486,0.003,21241.0,21240.0,0.054]
[1674036521746,0.003,21241.0,21240.0,0.524808]
[1674036522006,0.470758,21243.0,21240.0,0.470808]
[1674036522267,0.473758,21243.0,21240.0,0.524808]
[1674036522519,0.003,21243.0,21240.0,0.63725856]
[1674036523056,0.003,21243.0,21240.0,1.10806756]
[1674036523298,0.003,21241.0,21240.0,1.10806756]
[1674036523564,1.052377,21244.0,21240.0,1.05406756]
[1674036523565,0.581637,21244.0,21240.0,1.05406756]
[1674036523814,0.003,21243.0,21240.0,1.29879351]
[1674036524071,0.1109,21244.0,21240.0,0.941617]
[1674036524324,0.003,21241.0,21240.0,1.29879351]
[1674036524596,0.1109,21244.0,21240.0,1.05406756]
[1674036524835,0.581621,21244.0,21240.0,1.24479351]
[1674036525075,0.003,21243.0,21240.0,1.29879351]
[1674036525333,0.00395919,21243.0,21240.0,1.10806756]
[1674036525904,0.003,21243.0,21240.0,1.10806756]
[1674036526098,0.581621,21244.0,21240.0,1.05406756]
[1674036526356,0.003,21241.0,21240.0,1.29879351]
[1674036526596,0.581621,21244.0,21240.0,1.05406756]
[1674036526848,0.003,21243.0,21240.0,1.29879351]
[1674036527140,0.003,21243.0,21240.0,1.05406756]
[1674036527382,0.003,21243.0,21240.0,1.10806756]
[1674036527876,0.00395919,21243.0,21240.0,1.10806756]
[1674036528126,0.00095919,21243.0,21240.0,1.05406756]
[1674036528393,0.003,21243.0,21240.0,1.10806756]
[1674036531394,0.00095919,21242.0,21240.0,1.10806756]
[1674036531929,0.003,21243.0,21240.0,0.63725956]
[1674036532462,0.581635,21244.0,21240.0,0.58325956]
[1674036532721,0.003,21242.0,21240.0,1.29879451]
[1674036532979,1.052373,21244.0,21240.0,1.05406856]
[1674036533248,0.003,21243.0,21240.0,1.29879451]
[1674036533575,0.003,21243.0,21240.0,1.27733397]
[1674036534334,0.581638,21244.0,21240.0,1.22333397]
[1674036534594,0.584638,21244.0,21240.0,1.41405992]
[1674036534849,0.584638,21244.0,21240.0,1.46805992]
[1674036535147,0.003,21243.0,21240.0,1.22333397]
[1674036535387,0.003,21243.0,21240.0,1.27733397]
[1674036537299,0.581638,21244.0,21240.0,1.27733397]
[1674036537555,0.00395919,21243.0,21240.0,1.27733397]
[1674036538059,0.33672479,21243.0,21240.0,0.58325956]
[1674036538313,0.33672479,21243.0,21240.0,0.63725956]
[1674036538571,0.33672479,21243.0,21240.0,0.58325956]
[1674036538819,0.33672479,21243.0,21240.0,0.470809]
[1674036539077,0.33972479,21243.0,21240.0,0.524809]
[1674036540204,0.3387656,21243.0,21240.0,0.524809]
[1674036540434,0.3387656,21243.0,21240.0,1.27733397]
[1674036540945,0.003,21243.0,21240.0,1.27733397]
[1674036541409,0.003,21243.0,21241.0,0.11245056]
[1674036541663,0.003,21243.0,21241.0,0.19432031]
[1674036541929,0.00395919,21243.0,21241.0,0.19432031]
[1674036542472,0.581636,21244.0,21241.0,0.19432031]
[1674036542473,0.581636,21244.0,21241.0,0.24832031]
[1674036542754,0.003,21243.0,21241.0,0.24832031]
[1674036543494,0.47169519,21244.0,21241.0,0.19432031]
[1674036544276,0.47469519,21244.0,21241.0,0.24832031]
[1674036545820,0.94541619,21244.0,21241.0,0.054]
[1674036546613,0.47468019,21244.0,21241.0,0.524784]
[1674036548149,0.47468019,21244.0,21241.0,0.63723456]
[1674036548410,0.47468019,21244.0,21241.0,0.524784]
[1674036548969,0.46968019,21244.0,21241.0,0.524784]
[1674036549462,0.94040119,21244.0,21241.0,0.054]
[1674036549733,0.46968019,21244.0,21241.0,0.16645056]
[1674036550786,1.49056852,21245.0,21241.0,1.10800056]
[1674036551059,1.49056852,21245.0,21241.0,1.29872651]
[1674036551625,1.49056852,21245.0,21241.0,0.82795751]
[1674036551887,1.37849834,21245.0,21241.0,0.63723156]
[1674036552412,1.37849834,21245.0,21241.0,0.58323156]
[1674036552681,0.314477,21244.0,21241.0,0.64023156]
[1674036552973,1.49357452,21245.0,21241.0,0.64023156]
[1674036553230,1.49357452,21245.0,21241.0,0.83095751]
[1674036553231,1.38150434,21245.0,21241.0,0.83095751]
[1674036553494,1.38150434,21245.0,21241.0,0.64023156]
[1674036554301,1.38150434,21245.0,21241.0,1.11101856]
[1674036554302,0.91079334,21245.0,21241.0,1.11101856]
[1674036554570,0.91079334,21245.0,21241.0,1.28028397]
[1674036555094,1.38149134,21245.0,21241.0,1.11101856]
[1674036555615,1.38149134,21245.0,21241.0,0.64023756]
[1674036556475,1.38149134,21245.0,21241.0,1.28028997]
[1674036556723,1.38149134,21245.0,21241.0,0.64023756]
[1674036557116,0.314869,21244.0,21241.0,0.64023756]
[1674036557369,1.02286252,21245.0,21241.0,0.64023756]
[1674036557919,0.470721,21244.0,21241.0,0.58323756]
[1674036558195,0.63174467,21243.0,21241.0,0.057]
[1674036558478,0.325405,21242.0,21240.0,0.75250597]
[1674036558754,0.28979167,21243.0,21241.0,0.057]
[1674036559273,0.28979167,21243.0,21241.0,0.16945056]
[1674036560052,0.28979167,21243.0,21240.0,1.22330497]
[1674036560345,0.28979167,21243.0,21241.0,0.16945056]
[1674036560616,0.28979167,21243.0,21240.0,1.05403956]
[1674036560874,0.29279167,21243.0,21241.0,0.057]
[1674036561120,0.33248,21242.0,21241.0,0.057]
[1674036561641,0.324582,21242.0,21241.0,0.057]
[1674036561894,0.29279167,21243.0,21241.0,0.057]
[1674036562631,0.003,21242.0,21241.0,0.057]
[1674036562923,0.43979167,21243.0,21240.0,0.58324756]
[1674036563183,0.308437,21242.0,21241.0,0.057]
[1674036563459,0.40059167,21243.0,21240.0,0.75251297]
[1674036563703,0.003,21242.0,21241.0,0.057]
[1674036564962,0.327467,21242.0,21241.0,0.057]
[1674036565212,0.003,21242.0,21241.0,0.057]
[1674036565465,0.331524,21242.0,21241.0,0.057]
[1674036565723,0.003,21242.0,21241.0,0.057]
[1674036566792,0.335526,21242.0,21241.0,0.057]
[1674036570317,0.003,21242.0,21241.0,0.057]
[1674036570563,0.326414,21242.0,21241.0,0.057]
[1674036572085,0.003,21242.0,21241.0,0.057]
[1674036572386,0.003,21242.0,21241.0,0.16945056]
[1674036572719,0.003,21242.0,21241.0,0.64023756]
[1674036573239,0.003,21242.0,21241.0,0.80950297]
[1674036573502,0.003,21242.0,21241.0,0.16945056]
[1674036573777,0.003,21242.0,21241.0,0.057]
[1674036578152,0.00291692,21242.0,21241.0,0.057]
[1674036578419,0.32296692,21242.0,21241.0,0.057]
[1674036579723,0.33805292,21242.0,21241.0,0.057]
[1674036580286,1.2511793,21242.0,21241.0,0.057]
[1674036581283,0.9160433,21242.0,21241.0,0.057]
[1674036581558,1.2377723,21242.0,21241.0,0.057]
[1674036585663,1.7085373,21242.0,21241.0,0.057]
[1674036585936,0.9160433,21242.0,21241.0,0.057]
[1674036586196,0.7685583,21242.0,21241.0,0.057]
[1674036586732,1.7100883,21242.0,21241.0,0.057]
[1674036586982,0.7685583,21242.0,21241.0,0.057]
[1674036587245,0.7685583,21242.0,21241.0,0.05791776]
[1674036587500,0.7685583,21242.0,21241.0,0.057]
[1674036589050,0.43619692,21242.0,21241.0,0.057]
[1674036589314,0.11291692,21242.0,21241.0,0.057]
[1674036591597,0.00291692,21242.0,21241.0,0.057]
[1674036592629,0.30820792,21242.0,21241.0,0.057]
[1674036592911,0.00291692,21242.0,21241.0,0.057]
[1674036596110,0.00291692,21242.0,21241.0,1.69068997]
[1674036596630,0.00291692,21242.0,21241.0,2.17066843]
[1674036596890,0.00291692,21242.0,21241.0,1.69068997]
[1674036597155,0.00291692,21242.0,21241.0,1.22142456]
[1674036597683,0.00291692,21242.0,21241.0,3.11109747]
[1674036597937,1e-08,21242.0,21241.0,1.69068997]
[1674036598548,1e-08,21242.0,21241.0,2.16927476]
[1674036598721,1e-08,21242.0,21241.0,1.69068997]
[1674036598972,1e-08,21242.0,21241.0,2.16927466]
[1674036599218,1e-08,21242.0,21241.0,3.11083002]
[1674036599469,1e-08,21242.0,21241.0,2.16927466]
[1674036599717,1e-08,21242.0,21241.0,1.69068997]
[1674036600230,1e-08,21242.0,21241.0,2.99829247]
[1674036600482,1e-08,21242.0,21241.0,3.22397968]
[1674036602268,1e-08,21242.0,21241.0,3.05471427]
[1674036602519,1e-08,21242.0,21241.0,2.9239694]
[1674036602774,1e-08,21242.0,21241.0,3.2239694]
[1674036603024,1e-08,21242.0,21241.0,3.11112155]
[1674036603284,1e-08,21242.0,21241.0,1.2218131]
[1674036603618,1e-08,21242.0,21241.0,1.39106823]
[1674036603799,1e-08,21242.0,21241.0,1.2218131]
[1674036604060,1e-08,21242.0,21241.0,1.86970452]
[1674036604314,1e-08,21242.0,21241.0,1.2218131]
[1674036607385,1e-08,21242.0,21241.0,1.39106823]
[1674036607655,1e-08,21242.0,21241.0,2.17017626]
[1674036607892,1e-08,21242.0,21241.0,1.2218131]
[1674036608720,1e-08,21242.0,21241.0,1.108974]
[1674036608923,1e-08,21242.0,21241.0,1.2218131]
[1674036609437,1e-08,21242.0,21241.0,1.5303131]
[1674036609704,1e-08,21242.0,21241.0,2.17863231]
[1674036610228,1e-08,21242.0,21241.0,3.23301643]
[1674036610483,1e-08,21242.0,21241.0,3.00732922]
[1674036611397,1e-08,21242.0,21241.0,2.17858511]
[1674036611566,1e-08,21242.0,21241.0,1.2302659]
[1674036612590,1e-08,21242.0,21241.0,0.527787]
[1674036612845,1e-08,21242.0,21241.0,0.057]
[1674036613096,0.47076501,21242.0,21241.0,0.057]
[1674036613355,0.79187101,21242.0,21241.0,0.057]
[1674036614906,1.26263601,21242.0,21241.0,0.057]
[1674036615415,0.79187101,21242.0,21241.0,0.057]
[1674036616699,1.26263601,21242.0,21241.0,0.057]
[1674036616961,1.48383601,21242.0,21241.0,0.057]
[1674036617225,1.94931189,21242.0,21241.0,0.057]
[1674036617789,1.94931188,21242.0,21235.0,0.58939416]
[1674036617978,0.1109,21238.0,21235.0,0.58939416]
[1674036618279,0.325373,21237.0,21235.0,0.58939416]
[1674036618536,0.1109,21238.0,21235.0,0.58939416]
[1674036619284,0.1139,21238.0,21235.0,0.64439416]
[1674036619554,0.1139,21238.0,21235.0,0.17348816]
[1674036619555,0.11378148,21238.0,21235.0,0.17348816]
[1674036619812,0.58463548,21238.0,21235.0,0.17348816]
[1674036620591,1.05548948,21238.0,21235.0,0.17348816]
[1674036620846,0.58463548,21238.0,21235.0,0.06069626]
[1674036621654,0.58463548,21238.0,21235.0,0.17348816]
[1674036622691,0.58463548,21238.0,21235.0,0.06069626]
[1674036623252,0.58463548,21238.0,21235.0,0.53161526]
[1674036623509,0.11378148,21238.0,21235.0,0.64440716]
[1674036623776,0.58463748,21238.0,21235.0,0.64440716]
[1674036624533,0.11378148,21238.0,21235.0,0.64440716]
[1674036625314,0.11378148,21238.0,21235.0,0.53161526]
[1674036625829,0.58463548,21238.0,21235.0,0.53161526]
[1674036627661,0.11378148,21238.0,21235.0,0.53161526]
[1674036631306,0.003,21238.0,21236.0,0.3]
[1674036631566,0.003,21238.0,21237.0,1.052152]
[1674036631829,0.470781,21242.0,21237.0,1.052152]
[1674036632097,0.470781,21242.0,21238.0,0.19072595]
[1674036632360,0.7840877,21243.0,21239.0,1.24227995]
[1674036632616,0.7840877,21243.0,21240.0,0.19072595]
[1674036632617,0.3133287,21243.0,21240.0,0.19072595]
[1674036632877,0.3133287,21243.0,21241.0,0.470787]
[1674036634193,0.031,21242.0,21241.0,0.941574]
[1674036634412,1.051734,21245.0,21241.0,0.941574]
[1674036634637,0.031,21243.0,21241.0,0.66651295]
[1674036635060,0.031,21243.0,21241.0,0.475787]
[1674036635321,0.031,21243.0,21241.0,0.26582111]
[1674036636649,0.031,21243.0,21241.0,0.45654706]
[1674036636908,0.031,21243.0,21241.0,0.73660811]
[1674036637928,0.031,21243.0,21241.0,0.26582111]
[1674036638445,0.031,21243.0,21241.0,0.73660811]
[1674036644604,0.031,21243.0,21241.0,0.26582111]
[1674036646752,0.031,21243.0,21241.0,0.73660811]
[1674036649420,0.031,21243.0,21241.0,0.26582111]
[1674036650990,0.031,21243.0,21241.0,0.73660811]
[1674036651908,0.031,21243.0,21241.0,0.26582111]
[1674036655016,0.031,21243.0,21241.0,0.73660811]
[1674036656312,0.031,21243.0,21241.0,0.26582111]
[1674036656902,0.031,21243.0,21241.0,0.73660811]
[1674036657950,0.031,21243.0,21241.0,0.26582111]
[1674036658263,0.031,21243.0,21241.0,0.73660811]
[1674036658813,0.031,21243.0,21241.0,0.26582111]
[1674036659883,0.031,21243.0,21241.0,0.005]
[1674036660147,0.1413,21243.0,21241.0,0.005]
[1674036660407,0.307761,21242.0,21241.0,0.005]
[1674036661218,0.778526,21242.0,21241.0,0.005]
[1674036661477,0.778526,21242.0,21239.0,0.470813]
[1674036661742,0.501765,21242.0,21241.0,0.005]
[1674036662016,0.826221,21242.0,21241.0,0.005]
[1674036662552,0.795221,21242.0,21239.0,0.470813]
[1674036662809,0.339415,21241.0,21239.0,0.527813]
[1674036663068,0.323334,21240.0,21239.0,0.470813]
[1674036663368,0.581565,21242.0,21239.0,0.470813]
[1674036663587,0.612565,21242.0,21241.0,0.005]
[1674036663840,0.91701,21242.0,21241.0,0.005]
[1674036664097,0.88601,21242.0,21239.0,0.470813]
[1674036664364,0.31844,21241.0,21239.0,0.470813]
[1674036664630,0.310812,21240.0,21239.0,0.470813]
[1674036664876,0.312812,21240.0,21239.0,0.527813]
[1674036665147,0.310812,21240.0,21239.0,0.470813]
[1674036665402,0.470794,21241.0,21239.0,0.057]
[1674036665665,0.3303,21240.0,21238.0,0.470837]
[1674036666002,0.002,21240.0,21239.0,0.057]
[1674036666176,0.07129,21240.0,21239.0,0.057]
[1674036666449,0.85574,21240.0,21236.0,0.75293103]
[1674036666709,0.329622,21239.0,21236.0,0.75293103]
[1674036666960,0.325685,21238.0,21236.0,0.5836759]
[1674036667214,0.47084,21239.0,21236.0,0.5836759]
[1674036667446,0.58106627,21239.0,21236.0,0.470884]
[1674036667766,0.33276,21238.0,21236.0,0.1127919]
[1674036668015,0.448019,21237.0,21235.0,0.75864629]
[1674036668281,0.306493,21236.0,21235.0,0.58939116]
[1674036668553,0.1108,21237.0,21235.0,0.11848816]
[1674036668804,0.1108,21237.0,21236.0,0.061]
[1674036669076,0.1108,21237.0,21235.0,0.00569626]
[1674036669077,0.44596,21237.0,21235.0,0.00569626]
[1674036669332,0.328885,21236.0,21235.0,0.06269626]
[1674036669584,0.1138,21237.0,21235.0,0.00569626]
[1674036669891,0.316998,21236.0,21235.0,0.06269626]
[1674036670105,0.1168,21237.0,21235.0,0.06269626]
[1674036670391,0.1168,21237.0,21235.0,0.17548816]
[1674036670894,0.006,21237.0,21235.0,0.64640816]
[1674036671410,0.006,21237.0,21235.0,0.53361626]
[1674036672460,0.006,21237.0,21235.0,1.00453626]
[1674036672971,0.006,21237.0,21235.0,1.11732816]
[1674036674048,0.006,21237.0,21235.0,1.00453626]
[1674036674331,0.006,21237.0,21235.0,1.11732816]
[1674036675398,0.006,21237.0,21235.0,1.00453626]
[1674036675942,0.006,21237.0,21235.0,0.53361626]
[1674036678624,0.1103,21236.0,21235.0,0.06269626]
[1674036678875,0.433027,21236.0,21235.0,0.06269626]
[1674036679121,0.446719,21236.0,21235.0,0.06269626]
[1674036679644,0.438747,21236.0,21235.0,0.06269626]
[1674036679918,0.413545,21236.0,21235.0,0.06269626]
[1674036680460,0.1133,21236.0,21235.0,0.06269626]
[1674036680946,0.444465,21236.0,21235.0,0.06269626]
[1674036681714,1.28669252,21236.0,21235.0,0.06269626]
[1674036681985,1.39739252,21236.0,21235.0,0.06269626]
[1674036683566,1.39739252,21236.0,21235.0,0.06262294]
[1674036684620,1.86829052,21236.0,21235.0,0.06262294]
[1674036691870,2.22346917,21236.0,21235.0,0.06262294]
[1674036692130,1.97849052,21236.0,21235.0,0.06262294]
[1674036695611,1.86819052,21236.0,21235.0,0.06262294]
[1674036700368,1.97809052,21236.0,21235.0,0.06262294]
[1674036700933,2.64339052,21236.0,21235.0,0.06262294]
[1674036701197,2.64284459,21236.0,21235.0,0.06262294]
[1674036701456,1.97684459,21236.0,21235.0,0.06262294]
[1674036701935,1.97439052,21236.0,21235.0,0.00562294]
[1674036703292,2.01339052,21236.0,21235.0,0.01062294]
[1674036704576,2.31339052,21236.0,21235.0,0.01062294]
[1674036705083,2.01339052,21236.0,21235.0,0.01062294]
[1674036705594,2.1254607,21236.0,21235.0,0.01062294]
[1674036705890,2.31339052,21236.0,21235.0,0.01062294]
[1674036706126,2.1254607,21236.0,21235.0,0.01062294]
[1674036706395,2.31339052,21236.0,21235.0,0.01062294]
[1674036706652,2.4254607,21236.0,21235.0,0.01062294]
[1674036707454,2.01339052,21236.0,21235.0,0.01062294]
[1674036707769,2.49059221,21236.0,21235.0,0.01062294]
[1674036708756,2.38039221,21236.0,21235.0,0.01062294]
[1674036711142,2.38549221,21236.0,21235.0,0.01062294]
[1674036713788,1.68839052,21236.0,21235.0,0.01062294]
[1674036714577,1.68954952,21236.0,21235.0,0.01062294]
[1674036714845,1.35722552,21236.0,21235.0,0.01062294]
[1674036715108,1.65674652,21236.0,21235.0,0.01062294]
[1674036715369,1.69549852,21236.0,21235.0,0.01062294]
[1674036716426,0.41542952,21236.0,21235.0,0.01062294]
[1674036719349,0.41542952,21236.0,21235.0,0.0105435]
[1674036719655,0.41032952,21236.0,21235.0,0.0105435]
[1674036720982,1.35212552,21236.0,21235.0,0.0105435]
[1674036722357,1.65190552,21236.0,21235.0,0.0105435]
[1674036722625,1.84025214,21236.0,21235.0,0.0105435]
[1674036723146,1.95115214,21236.0,21235.0,0.0105435]
[1674036731598,2.42205014,21236.0,21235.0,0.0105435]
[1674036731834,2.53412032,21236.0,21235.0,0.0105435]
[1674036733138,2.64502032,21236.0,21235.0,0.0105435]
[1674036736307,2.70190086,21236.0,21235.0,0.0105435]
[1674036736560,3.22705655,21236.0,21235.0,0.0105435]
[1674036737087,4.12409027,21236.0,21235.0,0.0105435]
[1674036737363,3.78080569,21236.0,21235.0,0.0105435]
[1674036737579,4.48178182,21236.0,21235.0,0.00948916]
[1674036737855,4.14403197,21236.0,21235.0,0.00948916]
[1674036738103,4.21833243,21236.0,21235.0,0.00948916]
[1674036738350,4.31129201,21236.0,21235.0,0.00948916]
[1674036738607,4.5439771,21236.0,21235.0,0.00948916]
[1674036738913,0.15,21235.0,21233.0,0.00569626]
[1674036739171,2.99463642,21234.0,21233.0,0.00569626]
[1674036739458,4.23976422,21234.0,21233.0,0.00569626]
[1674036739715,4.71386639,21234.0,21233.0,0.00569626]
[1674036739999,4.18095071,21234.0,21233.0,0.00569626]
[1674036740253,3.87486017,21234.0,21233.0,0.00569626]
[1674036740529,3.68982237,21234.0,21233.0,0.01069626]
[1674036740779,3.32822191,21234.0,21233.0,0.01069626]
[1674036744339,3.62822191,21234.0,21233.0,0.01069626]
[1674036744621,3.32822191,21234.0,21233.0,0.01069626]
[1674036746128,3.1594274,21234.0,21233.0,0.01069626]
[1674036746891,3.63352957,21234.0,21233.0,0.01069626]
[1674036750481,4.10232408,21234.0,21233.0,0.01069626]
[1674036750734,3.98982237,21234.0,21233.0,0.01069626]
[1674036750990,3.80225564,21234.0,21233.0,0.01069626]
[1674036751814,3.15935896,21234.0,21233.0,0.01069626]
[1674036754162,3.04875896,21234.0,21233.0,0.01069626]
[1674036754408,2.93632569,21234.0,21233.0,0.01069626]
[1674036760249,3.04875896,21234.0,21233.0,0.01069626]
[1674036760775,2.82875896,21234.0,21233.0,0.01069626]
[1674036761598,2.71632569,21234.0,21233.0,0.01060946]
[1674036762348,2.82875896,21234.0,21233.0,0.01060946]
[1674036763137,2.71632569,21234.0,21233.0,0.01060946]
[1674036763877,2.82875896,21234.0,21233.0,0.01060946]
[1674036764135,2.24538369,21234.0,21233.0,0.01060946]
[1674036764658,1.768182,21234.0,21233.0,0.01060946]
[1674036765680,1.452826,21234.0,21233.0,0.01060946]
[1674036765947,1.765913,21234.0,21233.0,0.01060946]
[1674036766464,1.452826,21234.0,21233.0,0.01060946]
[1674036768994,0.981884,21234.0,21233.0,0.01060946]
[1674036775117,3.13384768,21234.0,21233.0,0.01060946]
[1674036775605,2.66290568,21234.0,21233.0,0.01060946]
[1674036779043,3.13384768,21234.0,21233.0,0.01060946]
[1674036779296,3.45253268,21234.0,21233.0,0.01060946]
[1674036779558,2.98159068,21234.0,21233.0,0.01060946]
[1674036779836,2.97497368,21234.0,21233.0,0.01060946]
[1674036780115,2.66290568,21234.0,21233.0,0.01060946]
[1674036781518,2.66290568,21234.0,21230.0,0.45377998]
[1674036781774,0.28227927,21233.0,21231.0,0.1106]
[1674036782985,0.28227927,21233.0,21232.0,0.1098]
[1674036783254,0.32727927,21233.0,21232.0,0.1098]
[1674036784274,0.75324427,21233.0,21232.0,0.1138]
[1674036784538,0.32727927,21233.0,21232.0,0.1138]
[1674036784848,0.79824427,21233.0,21232.0,0.1138]
[1674036785116,0.32727927,21233.0,21232.0,0.1138]
[1674036787516,0.79824427,21233.0,21232.0,0.1138]
[1674036788564,1.26920927,21233.0,21232.0,0.1138]